bitfinex/quotes_ETHUSD_20250620
["timestamp","ask_amount","ask_price","bid_price","bid_amount"]
[1750422675800,14.70243047,2553.6,2553.1,3.91679785]
[1750422676000,4.64748806,2553.5,2553.1,3.91679785]
[1750422676230,0.73129129,2553.4,2553.2,3.91664097]
[1750422676414,0.36564545,2553.3,2553.1,3.91672963]
[1750422676620,3.91620925,2553.5,2553.1,4.78061515]
[1750422676936,0.73128606,2553.4,2553.1,3.91672963]
[1750422677121,0.36564308,2553.3,2553.1,3.91672963]
[1750422677308,3.91620925,2553.5,2553.1,3.91672963]
[1750422677509,0.73122535,2553.4,2553.1,3.91672963]
[1750422677812,0.36560865,2553.3,2553.1,3.91672963]
[1750422678012,3.91620925,2553.5,2553.1,3.91672963]
[1750422678213,0.73121857,2553.4,2553.1,3.91672963]
[1750422678428,0.36560926,2553.3,2553.1,3.91672963]
[1750422678614,3.91620925,2553.5,2553.1,3.91672963]
[1750422678812,0.73122466,2553.4,2553.1,3.91672963]
[1750422679014,0.36561233,2553.3,2553.1,3.91672963]
[1750422679225,3.91620925,2553.5,2553.1,3.91672963]
[1750422679432,0.73114814,2553.4,2553.0,4.72207504]
[1750422679600,0.36557407,2553.3,2553.0,5.58598491]
[1750422679814,3.91635597,2553.4,2553.0,5.58598491]
[1750422680141,0.36559427,2553.3,2553.0,5.58598491]
[1750422680299,3.91628605,2553.5,2553.0,5.58598491]
[1750422680495,0.7309882,2553.4,2553.0,5.58598491]
[1750422680699,0.3654941,2553.3,2553.0,5.58598491]
[1750422680930,3.91628605,2553.5,2553.0,5.58598491]
[1750422681112,0.730882,2553.4,2553.1,3.91680132]
[1750422681308,0.365441,2553.3,2553.1,3.91680132]
[1750422681514,14.70243363,2553.6,2553.1,4.90625227]
[1750422681823,0.73076241,2553.5,2553.1,3.95596521]
[1750422682047,0.73076241,2553.4,2553.2,3.91664764]
[1750422682327,3.91595289,2553.7,2553.3,0.7572]
[1750422682528,0.73074333,2553.6,2553.3,0.7572]
[1750422682717,0.73074333,2553.5,2553.3,0.7572]
[1750422682920,3.91595289,2553.7,2553.3,1.61623631]
[1750422683223,0.73079383,2553.6,2553.3,4.67367999]
[1750422683404,0.73078235,2553.5,2553.3,4.67367999]
[1750422683605,3.91595289,2553.7,2553.3,4.67367999]
[1750422683806,0.73077385,2553.6,2553.3,4.67367999]
[1750422684035,0.36538758,2553.5,2553.3,4.67367999]
[1750422684244,13.91582435,2553.8,2553.4,0.467368]
[1750422684405,0.73097085,2553.7,2553.3,0.7572]
[1750422684604,0.73097085,2553.6,2553.3,0.7572]
[1750422684822,0.36548559,2553.5,2553.3,0.7572]
[1750422685105,3.9158878,2553.7,2553.3,0.7572]
[1750422685435,4.64702248,2553.6,2553.1,4.67693401]
[1750422685639,0.36549121,2553.5,2553.2,3.91663792]
[1750422685855,0.36557886,2553.4,2553.2,3.91663792]
[1750422686160,3.91604014,2553.6,2553.2,3.91663792]
[1750422686321,0.36560796,2553.5,2553.2,3.91663792]
[1750422686662,0.36560796,2553.4,2553.3,3.91650021]
[1750422686826,0.36563201,2553.4,2553.3,3.91650021]
[1750422687033,0.36563201,2553.4,2553.2,3.91656048]
[1750422687353,11.47692241,2553.7,2553.2,3.91656048]
[1750422687548,0.36562715,2553.6,2553.2,3.91656048]
[1750422687750,0.36562674,2553.5,2553.3,3.91648543]
[1750422687926,0.36562918,2553.4,2553.3,3.91648543]
[1750422688545,0.36562918,2553.4,2553.2,3.9165867]
[1750422688751,11.47692241,2553.7,2553.2,3.9165867]
[1750422688942,0.7315587,2553.6,2553.2,3.9165867]
[1750422689150,0.36578528,2553.5,2553.3,3.9164989]
[1750422689425,0.36578528,2553.4,2553.3,3.9164989]
[1750422690369,0.3657838,2553.4,2553.3,3.9164989]
[1750422692234,10.0,2553.8,2553.1,0.7602]
[1750422692436,10.0,2553.8,2553.5,3.91618158]
[1750422692633,10.0,2553.8,2553.4,3.9162297]
[1750422693084,0.73165888,2553.7,2553.5,3.91618568]
[1750422693282,0.73165888,2553.6,2553.5,3.91618568]
[1750422693882,0.73165888,2553.6,2553.4,3.91626571]
[1750422694070,0.36582944,2553.5,2553.3,3.91641019]
[1750422694273,0.36582944,2553.4,2553.3,3.91641019]
[1750422694469,0.36582944,2553.4,2553.3,4.822502]
[1750422694992,0.36583259,2553.4,2553.3,4.822502]
[1750422695135,13.91573704,2553.8,2553.3,4.822502]
[1750422695336,0.7317366,2553.7,2553.3,3.91641019]
[1750422695686,0.7317366,2553.6,2553.3,3.91641019]
[1750422695864,0.36587835,2553.5,2553.3,3.91641019]
[1750422696186,0.36587835,2553.4,2553.3,3.91641019]
[1750422696790,0.36607854,2553.4,2553.3,3.91641019]
[1750422696951,0.36607854,2553.4,2553.3,4.822502]
[1750422697585,0.36611231,2553.4,2553.3,4.822502]
[1750422698086,0.36610949,2553.4,2553.3,4.822502]
[1750422698547,0.36611142,2553.7,2553.5,3.91618592]
[1750422698756,0.36611073,2553.6,2553.5,3.91618592]
[1750422699496,0.8185,2554.4,2554.0,3.91542222]
[1750422699783,0.8185,2554.4,2553.8,0.7651]
[1750422699784,0.73246394,2554.3,2553.8,0.7651]
[1750422699985,0.36623224,2554.2,2554.1,3.91512154]
[1750422700683,0.36623224,2554.2,2554.1,4.71937099]
[1750422700840,0.8185,2554.6,2554.3,3.91487027]
[1750422701041,0.36541899,2554.5,2554.3,3.91487027]
[1750422701566,0.8185,2554.6,2554.2,3.91501657]
[1750422701754,0.36542114,2554.5,2554.2,3.91501657]
[1750422701938,0.36542114,2554.4,2554.1,4.68035845]
[1750422702138,0.8185,2554.6,2554.2,3.91501053]
[1750422702386,0.3654316,2554.5,2554.2,3.91501053]
[1750422702590,0.3654316,2554.5,2554.1,4.6803011]
[1750422702935,0.3654316,2554.5,2554.1,0.7651]
[1750422703173,0.3654316,2554.4,2553.9,3.91546201]
[1750422703470,10.67278585,2554.5,2554.0,3.91534724]
[1750422703672,0.36505723,2554.4,2554.0,3.91534724]
[1750422703850,0.365062,2554.4,2554.0,3.91534724]
[1750422704677,0.365062,2554.4,2553.6,0.7934]
[1750422704678,0.7561,2554.2,2553.6,0.7934]
[1750422704839,6.75804148,2554.1,2553.6,0.7934]
[1750422705383,6.75804148,2554.1,2553.8,3.91562489]
[1750422706292,6.75804148,2554.1,2553.9,3.91551496]
[1750422706440,0.7561,2554.2,2554.0,3.91542678]
[1750422709695,0.7561,2554.2,2554.1,3.91527348]
[1750422710687,0.7561,2554.2,2554.0,3.91534536]
[1750422712176,0.7561,2554.2,2553.9,3.91551137]
[1750422712981,6.75804148,2554.1,2553.8,3.91567481]
[1750422713292,6.75804148,2554.1,2553.6,3.91598624]
[1750422713441,6.75804148,2553.9,2553.4,4.70947411]
[1750422713643,0.7537,2553.8,2553.5,4.38701905]
[1750422714392,0.7537,2553.8,2553.5,3.91607164]
[1750422715390,0.7537,2553.8,2553.6,3.91603452]
[1750422715985,3.91496691,2554.3,2553.7,3.91588675]
[1750422716302,10.36509282,2554.2,2553.8,3.9155911]
[1750422716607,0.36509282,2554.1,2553.8,3.9155911]
[1750422716749,13.9151336,2554.2,2553.8,3.9155911]
[1750422717106,0.36516439,2554.1,2553.8,3.9155911]
[1750422717290,0.36516439,2554.0,2553.7,3.91579662]
[1750422717848,0.36522387,2554.0,2553.7,3.91579662]
[1750422718046,6.75804148,2553.9,2553.3,3.91650021]
[1750422718267,10.67364057,2553.9,2553.5,3.91617516]
[1750422718451,6.75804148,2553.7,2553.3,3.9164438]
[1750422718671,0.7812,2553.4,2552.9,3.91707925]
[1750422718881,6.75804148,2553.3,2552.9,3.91711387]
[1750422719059,6.75804148,2553.3,2552.9,3.9170538]
[1750422719607,6.75804148,2553.3,2553.0,3.91688142]
[1750422719822,6.75804148,2553.3,2553.1,3.9167928]
[1750422720176,6.75804148,2553.3,2553.1,3.91677534]
[1750422720499,6.75804148,2553.3,2553.0,3.91689004]
[1750422721110,6.75804148,2553.3,2552.9,3.91706573]
[1750422721317,6.75804148,2553.3,2553.0,3.91681111]
[1750422721524,6.75804148,2553.3,2552.9,3.91700194]
[1750422722018,6.75804148,2553.3,2553.0,3.9169603]
[1750422722721,6.75804148,2553.3,2552.9,3.91710767]
[1750422722881,6.75804148,2553.3,2553.0,3.91696043]
[1750422723626,6.75804148,2553.3,2552.9,3.91703214]
[1750422724619,10.6745634,2553.3,2552.9,3.91703214]
[1750422724830,6.75804148,2553.3,2552.9,3.91703214]
[1750422725165,11.45559789,2553.4,2552.9,3.91697015]
[1750422725708,11.45559789,2553.4,2553.0,3.91693527]
[1750422725914,7.53924148,2553.4,2553.0,3.91693527]
[1750422726159,11.45560526,2553.4,2553.0,3.91693527]
[1750422726666,7.53924148,2553.4,2553.1,3.9168008]
[1750422726964,7.53924148,2553.4,2553.0,3.91686836]
[1750422727584,7.53924148,2553.4,2553.1,3.91679549]
[1750422727754,7.53924148,2553.4,2553.0,3.9168814]
[1750422728184,11.45559655,2553.4,2553.0,3.9168814]
[1750422728880,3.91650645,2553.3,2552.9,3.9170342]
[1750422729091,6.75804148,2553.2,2552.8,3.91714964]
[1750422729557,6.75804148,2553.2,2552.9,3.91709558]
[1750422730655,6.75804148,2553.0,2552.7,3.91734854]
[1750422730969,11.43407825,2553.0,2552.6,3.91750594]
[1750422731486,7.51704148,2553.0,2552.6,3.91750594]
[1750422731840,7.51704148,2553.0,2552.5,3.9177212]
[1750422731841,7.51704148,2553.0,2552.7,3.91740508]
[1750422732783,0.759,2553.0,2552.7,3.91740508]
[1750422733614,0.759,2553.0,2552.6,3.91750493]
[1750422733785,11.43400981,2553.0,2552.5,3.91761952]
[1750422733986,3.91712715,2552.9,2552.5,3.91761952]
[1750422734186,3.91712715,2552.9,2552.4,3.91780517]
[1750422734489,3.91712715,2552.9,2552.3,3.91802212]
[1750422734490,11.43409018,2553.0,2552.5,3.91772169]
[1750422734667,11.43408426,2553.0,2552.5,3.91771472]
[1750422735184,3.91712819,2552.9,2552.5,3.91771472]
[1750422736085,3.91727489,2552.8,2552.4,3.91780405]
[1750422736253,10.67531637,2552.8,2552.3,3.91796046]
[1750422736459,4.70758552,2552.7,2552.2,3.91812897]
[1750422736658,0.7901,2552.7,2552.3,3.91803438]
[1750422736852,4.7075366,2552.7,2552.3,3.91803438]
[1750422737692,0.7901,2552.7,2552.3,3.91803438]
[1750422738689,0.7901,2552.7,2552.4,3.91787198]
[1750422739060,0.7901,2552.7,2552.3,3.91799374]
[1750422739396,0.7901,2552.7,2552.4,3.91787634]
[1750422739687,0.7901,2552.7,2552.5,3.91771442]
[1750422740100,0.7901,2552.7,2552.3,3.91790126]
[1750422740263,0.7901,2552.7,2552.3,3.91803471]
[1750422740589,0.8047,2552.9,2552.3,0.58102523]
[1750422740788,4.28221934,2552.8,2552.3,4.49896324]
[1750422740945,3.91735851,2552.8,2552.3,4.49897265]
[1750422741143,11.47989864,2552.9,2552.1,1.89221763]
[1750422741144,3.91789792,2552.4,2552.1,1.89221763]
[1750422741483,10.67585286,2552.5,2552.1,1.89221763]
[1750422741682,3.9178985,2552.4,2552.1,1.89221763]
[1750422742298,3.91799017,2552.4,2552.1,1.89221763]
[1750422743291,3.91803765,2552.3,2552.1,1.89221763]
[1750422743595,6.75804148,2552.5,2552.1,1.89221763]
[1750422743797,10.67589203,2552.5,2552.1,1.89221763]
[1750422743958,4.28263226,2552.4,2552.1,1.89221763]
[1750422744154,3.9178875,2552.4,2552.1,1.89221763]
[1750422744808,4.73042523,2552.6,2552.1,5.81045458]
[1750422745017,0.3646623,2552.5,2552.1,5.81045458]
[1750422745362,4.28236841,2552.5,2552.1,5.81045458]
[1750422745563,3.91773625,2552.5,2552.1,5.81045458]
[1750422745771,3.91773625,2552.5,2552.1,5.81055647]
[1750422745992,0.36493991,2552.4,2552.1,5.81055647]
[1750422747686,0.36482115,2552.4,2552.1,5.81055647]
[1750422748729,0.8127,2552.6,2552.1,5.81055647]
[1750422748730,13.91768877,2552.6,2552.2,0.8209]
[1750422748876,3.91743585,2552.7,2552.2,0.8209]
[1750422748877,4.64758026,2552.5,2552.2,0.8209]
[1750422749079,4.28290516,2552.4,2552.1,1.89221763]
[1750422749277,3.91799277,2552.4,2552.1,1.89221763]
[1750422749597,11.43795282,2552.5,2552.1,1.89221763]
[1750422749910,0.36490764,2552.4,2552.1,1.89221763]
[1750422751017,0.36490764,2552.4,2552.1,5.81055443]
[1750422752008,0.36485092,2552.4,2552.1,5.81055443]
[1750422752379,0.36485074,2552.4,2552.1,5.81055443]
[1750422752579,0.36488255,2552.4,2552.1,5.81055443]
[1750422753006,0.36487072,2552.4,2552.2,3.91811727]
[1750422753201,0.36487072,2552.5,2552.2,3.91811727]
[1750422753408,4.28259328,2552.5,2552.1,5.81049211]
[1750422753742,0.36485959,2552.4,2552.1,5.81049211]
[1750422753913,0.36485959,2552.5,2552.2,3.91816881]
[1750422754570,0.36485959,2552.5,2552.1,5.81047385]
[1750422754810,13.91757834,2552.6,2552.1,5.81047385]
[1750422755023,0.72969154,2552.5,2552.1,5.81047385]
[1750422755213,0.36483716,2552.4,2552.1,5.81047385]
[1750422755413,0.36483716,2552.5,2552.1,5.81047385]
[1750422755621,0.36492844,2552.4,2552.1,5.81047385]
[1750422755790,0.36492844,2552.5,2552.1,5.81047385]
[1750422755992,0.36493334,2552.4,2552.1,5.81047385]
[1750422756231,20.67561982,2552.6,2552.1,5.81047385]
[1750422756387,0.72985445,2552.5,2552.1,5.81047385]
[1750422756587,0.36493082,2552.4,2552.1,5.81047385]
[1750422756826,0.36493082,2552.5,2552.1,5.81047385]
[1750422756989,20.67561982,2552.6,2552.1,5.81047385]
[1750422756990,0.36494595,2552.4,2552.1,5.81047385]
[1750422757190,0.36494595,2552.5,2552.1,5.81047385]
[1750422757527,0.36494595,2552.4,2552.1,5.81047385]
[1750422757737,0.36497719,2552.5,2552.1,5.81047385]
[1750422757925,0.36497719,2552.4,2552.2,3.91817505]
[1750422758122,0.36497719,2552.5,2552.2,3.91817505]
[1750422758299,0.36497719,2552.4,2552.2,3.91817505]
[1750422758500,0.36509451,2552.5,2552.2,3.91817505]
[1750422758826,0.36509316,2552.4,2552.2,3.91817505]
[1750422759138,0.36508694,2552.5,2552.2,3.91817505]
[1750422759322,0.36508694,2552.4,2552.2,3.91817505]
[1750422759628,0.36508308,2552.5,2552.2,3.91817505]
[1750422759828,0.36508308,2552.4,2552.2,3.91817505]
[1750422760037,20.67562451,2552.6,2552.2,3.91817505]
[1750422760349,0.36517106,2552.5,2552.2,3.91817505]
[1750422760522,0.36517106,2552.4,2552.2,3.91817505]
[1750422760720,0.36532829,2552.3,2552.2,3.91817505]
[1750422760924,0.36532829,2552.5,2552.2,3.91817505]
[1750422761097,0.36532829,2552.4,2552.2,3.91817505]
[1750422761418,0.36532993,2552.3,2552.2,3.91817505]
[1750422761622,0.36532993,2552.5,2552.3,3.91802063]
[1750422761828,0.36543207,2552.4,2552.3,3.91802063]
[1750422762022,10.7851,2552.7,2552.4,3.91773039]
[1750422762230,0.73092618,2552.6,2552.5,4.69631786]
[1750422762400,0.36546309,2552.6,2552.5,4.69631786]
[1750422762600,10.0,2553.0,2552.6,3.91746819]
[1750422762794,0.73100661,2552.9,2552.6,3.91746819]
[1750422763022,0.73100661,2552.8,2552.6,3.91746819]
[1750422763236,0.36550318,2552.7,2552.6,3.91746819]
[1750422763933,0.36569475,2552.7,2552.6,3.91746819]
[1750422764132,0.36569475,2552.7,2552.5,0.7786]
[1750422764440,0.3657008,2552.6,2552.5,0.7786]
[1750422765141,0.3657008,2552.6,2552.4,3.91777625]
[1750422765312,10.6753902,2552.8,2552.4,3.91777625]
[1750422765516,0.36583545,2552.7,2552.4,3.91777625]
[1750422765714,0.36583545,2552.6,2552.4,3.91777625]
[1750422765914,0.36583545,2552.5,2552.4,3.91777625]
[1750422766211,0.36583545,2552.5,2552.3,4.69135766]
[1750422766415,10.6752259,2552.9,2552.3,4.69135766]
[1750422766416,10.67554565,2552.7,2552.3,4.69135766]
[1750422766615,0.36583615,2552.6,2552.3,3.91795766]
[1750422766824,0.36583615,2552.5,2552.3,3.91795766]
[1750422767029,10.67548079,2552.7,2552.3,3.91795766]
[1750422767231,0.36583728,2552.6,2552.2,3.91812426]
[1750422767437,12.21059477,2552.7,2552.2,3.91812426]
[1750422767438,0.36583728,2552.5,2552.2,3.91812426]
[1750422767743,0.36582642,2552.4,2552.2,3.91812426]
[1750422767906,10.67548079,2552.7,2552.2,3.91812426]
[1750422768105,0.36581752,2552.6,2552.3,3.91800247]
[1750422768342,0.36581418,2552.5,2552.3,3.91800247]
[1750422768506,0.36581489,2552.4,2552.3,3.91800247]
[1750422768907,0.36581311,2552.4,2552.3,3.91800247]
[1750422769152,0.36581481,2552.4,2552.3,3.91800247]
[1750422769306,0.36581481,2552.4,2552.2,3.91810928]
[1750422769515,10.67548079,2552.7,2552.2,3.91810928]
[1750422769718,0.36580063,2552.6,2552.2,3.91810928]
[1750422769907,0.36580063,2552.5,2552.2,3.91810928]
[1750422770111,0.36580063,2552.4,2552.1,6.56706749]
[1750422770413,0.36580063,2552.3,2552.2,3.91818822]
[1750422771877,0.36582061,2552.3,2552.2,3.91818822]
[1750422772954,0.36582061,2552.3,2552.2,4.67498822]
[1750422773122,6.75804148,2552.7,2552.4,3.91782411]
[1750422773311,0.3658566,2552.6,2552.4,3.91782411]
[1750422773517,0.3658588,2552.5,2552.4,3.91782411]
[1750422773848,0.36585096,2552.5,2552.4,3.91782411]
[1750422774256,0.36585096,2552.5,2552.3,3.91795819]
[1750422774454,0.36585096,2552.4,2552.3,3.91795819]
[1750422774612,0.36585256,2552.4,2552.3,3.91795819]
[1750422775329,0.36587041,2552.4,2552.3,3.91795819]
[1750422776273,0.36587041,2552.4,2552.2,4.67489985]
[1750422776411,0.36587041,2552.3,2552.2,3.91809985]
[1750422776754,0.36584931,2552.3,2552.2,3.91809985]
[1750422777328,0.3658569,2552.3,2552.2,3.91809985]
[1750422777654,0.36586108,2552.3,2552.2,3.91809985]
[1750422778017,0.36587598,2552.3,2552.2,3.91809985]
[1750422778431,0.36587598,2552.3,2552.1,5.81046964]
[1750422778432,0.36587693,2552.3,2552.1,5.81046964]
[1750422778628,11.43958015,2552.5,2552.1,5.81046964]
[1750422778957,0.3658808,2552.4,2552.1,5.81046964]
[1750422779155,0.3658808,2552.3,2552.1,5.81046964]
[1750422779455,7.52184148,2552.5,2552.1,5.81046964]
[1750422779633,0.36587216,2552.4,2552.1,5.81046964]
[1750422779833,0.36587216,2552.3,2552.1,5.81046964]
[1750422780041,11.43958398,2552.5,2552.1,5.81046964]
[1750422780248,0.36588795,2552.4,2552.1,5.81046964]
[1750422780566,0.36588795,2552.3,2552.1,5.81046964]
[1750422780746,7.52184148,2552.5,2552.2,3.91818645]
[1750422781063,0.36571572,2552.4,2552.2,3.91818645]
[1750422781257,0.36571572,2552.3,2552.2,3.91818645]
[1750422782134,0.36554736,2552.3,2552.2,3.91818645]
[1750422782838,6.75804148,2552.6,2552.3,3.91797125]
[1750422783039,0.36557693,2552.5,2552.3,3.91797125]
[1750422783241,0.36557693,2552.4,2552.3,3.91797125]
[1750422783975,0.36557693,2552.4,2552.2,3.91812112]
[1750422784153,0.36557693,2552.3,2552.2,3.91812112]
[1750422784554,0.36561413,2552.3,2552.2,3.91812112]
[1750422785064,0.36560797,2552.3,2552.1,6.86440555]
[1750422785265,10.67564246,2552.6,2552.2,3.91818822]
[1750422785566,0.73125776,2552.5,2552.2,3.91818822]
[1750422785751,0.36562888,2552.4,2552.2,3.91818822]
[1750422785952,0.36562888,2552.3,2552.2,3.91818822]
[1750422786339,0.36562238,2552.3,2552.2,3.91818822]
[1750422786676,0.36562623,2552.3,2552.2,3.91818822]
[1750422786877,0.36562266,2552.3,2552.2,3.91818822]
[1750422787240,0.36562224,2552.3,2552.2,3.91818822]
[1750422787772,0.7591,2552.9,2552.5,3.91768841]
[1750422787940,0.95065017,2552.8,2552.5,3.91768841]
[1750422788139,0.73127484,2552.7,2552.5,3.91768841]
[1750422788341,0.73127484,2552.6,2552.5,3.91768841]
[1750422789169,0.73130579,2552.6,2552.5,3.91768841]
[1750422789383,0.36565019,2552.6,2552.5,3.91768841]
[1750422790447,0.36565019,2552.6,2552.4,4.74390732]
[1750422790677,0.36565019,2552.5,2552.4,4.74390732]
[1750422791086,0.36565019,2552.5,2552.4,0.8261]
[1750422791381,0.36563564,2552.5,2552.4,4.7439812]
[1750422792445,0.36563564,2552.5,2552.4,5.75475759]
[1750422792776,20.67516636,2552.9,2552.5,3.91766689]
[1750422792981,0.5852128,2552.8,2552.5,3.91766689]
[1750422793169,0.36575792,2552.7,2552.5,3.91766689]
[1750422793343,0.36575792,2552.6,2552.4,0.8261]
[1750422793543,0.36574764,2552.5,2552.4,5.32370401]
[1750422793808,0.36574764,2552.5,2552.4,1.40589482]
[1750422794285,0.36599476,2552.5,2552.2,4.68881074]
[1750422794489,0.36602059,2552.4,2552.2,4.68881074]
[1750422794786,0.36602059,2552.3,2552.2,4.68881074]
[1750422795492,0.36617627,2552.3,2552.2,4.68881074]
[1750422795787,0.36617647,2552.3,2552.2,4.68881074]
[1750422796364,3.9174847,2552.7,2552.3,3.91798885]
[1750422796568,0.3662025,2552.6,2552.3,3.91798885]
[1750422796881,0.3662025,2552.5,2552.3,3.91798885]
[1750422797089,0.36624379,2552.4,2552.3,3.91798885]
[1750422797396,0.36624379,2552.4,2552.3,5.0728851]
[1750422797905,3.91726892,2552.8,2552.3,5.07285307]
[1750422798055,3.91726892,2552.8,2552.3,3.91795682]
[1750422798261,0.36625206,2552.7,2552.3,3.91795682]
[1750422798496,0.36625206,2552.6,2552.3,3.91795682]
[1750422798864,0.36625206,2552.5,2552.4,3.9178812]
[1750422799012,0.7916,2553.3,2552.7,3.91741173]
[1750422799306,0.95178093,2553.2,2552.6,0.0391714]
[1750422799508,0.36623255,2553.1,2553.0,3.91696043]
[1750422799709,4.67300669,2553.8,2553.0,3.91696043]
[1750422799710,10.0,2553.8,2553.4,4.69645386]
[1750422799881,0.95202299,2553.7,2553.4,4.69645386]
[1750422800092,0.36634068,2553.6,2553.4,4.69654042]
[1750422800271,10.0,2553.8,2553.4,4.69654042]
[1750422800472,0.3653111,2553.7,2553.4,0.7802]
[1750422800695,0.3653111,2553.6,2552.8,0.8083]
[1750422800901,0.3653111,2553.5,2553.2,3.9166257]
[1750422801505,6.75804148,2553.7,2553.3,3.91645728]
[1750422801809,0.36528434,2553.6,2553.3,3.91649478]
[1750422802007,0.36518996,2553.5,2553.3,3.91649478]
[1750422802214,0.36518996,2553.6,2553.3,3.91649478]
[1750422802375,0.36518996,2553.5,2553.3,3.91649478]
[1750422802575,0.36518996,2553.6,2553.3,3.91649478]
[1750422802779,0.36518996,2553.6,2553.4,3.91634683]
[1750422803010,0.786,2554.2,2553.8,3.91567212]
[1750422803311,7.97,2554.6,2554.1,3.91527156]
[1750422803312,0.786,2554.5,2554.1,3.91527156]
[1750422803516,0.36426276,2554.4,2554.1,3.91527156]
[1750422803709,6.75804148,2554.4,2554.1,3.91527156]
[1750422803892,0.786,2554.5,2554.1,3.91527156]
[1750422804090,8.04538602,2555.0,2554.4,0.8083]
[1750422804313,6.75804148,2554.8,2554.3,3.91496074]
[1750422804514,6.75804148,2554.8,2554.5,3.9145881]
[1750422805011,5.20125005,2555.0,2554.3,0.03914436]
[1750422805012,1.28734454,2555.0,2554.3,0.03914436]
[1750422805213,1.28734454,2555.0,2554.7,3.9143064]
[1750422805425,1.28734454,2555.0,2554.8,3.914169]
[1750422805712,6.75804148,2554.9,2554.2,0.8083]
[1750422805912,6.75804148,2554.9,2554.5,3.91457837]
[1750422806417,6.75804148,2554.7,2554.4,3.9147301]
[1750422806616,6.75804148,2554.7,2554.5,3.91464265]
[1750422807219,3.91450716,2554.6,2554.2,0.8083]
[1750422807385,3.91516354,2554.2,2553.6,6.98263633]
[1750422807720,6.75804148,2554.1,2553.7,3.91581414]
[1750422807915,10.67344715,2554.1,2553.6,6.20003633]
[1750422808082,7.51764148,2554.0,2553.6,10.1159731]
[1750422808712,0.7596,2554.0,2553.7,3.91588617]
[1750422809519,0.7596,2554.0,2553.6,10.11602544]
[1750422809721,0.7596,2554.0,2553.7,3.91586921]
[1750422810327,0.7596,2554.0,2553.8,3.91573301]
[1750422811223,0.7731,2554.3,2553.8,0.7081456]
[1750422811388,0.7731,2554.3,2554.0,3.91530534]
[1750422811589,0.7731,2554.3,2553.9,3.9155055]
[1750422811784,0.7731,2554.3,2554.0,3.91531693]
[1750422812387,0.7731,2554.3,2553.9,3.91551506]
[1750422812583,3.91522815,2554.2,2553.7,3.91577436]
[1750422813022,0.7522,2553.7,2553.6,6.20003633]
[1750422813518,14.66808675,2553.7,2553.6,6.20003633]
[1750422813717,3.91615113,2553.6,2553.0,3.91687038]
[1750422813922,4.69273197,2553.6,2552.9,3.91703097]
[1750422814112,3.91632691,2553.5,2552.9,3.91703097]
[1750422814422,10.7522,2553.7,2553.1,3.91671374]
[1750422814723,3.91613472,2553.6,2552.7,4.73440474]
[1750422815038,10.7522,2553.7,2553.4,3.91624879]
[1750422815237,10.7522,2553.7,2553.2,0.7897]
[1750422815393,14.66811355,2553.7,2553.3,3.91649972]
[1750422815990,10.7522,2553.7,2553.0,0.8178]
[1750422816219,14.66816317,2553.7,2553.2,3.91658562]
[1750422816424,3.91610702,2553.6,2553.1,3.91672811]
[1750422816690,3.91623505,2553.5,2553.0,3.91688563]
[1750422816989,14.45010756,2553.6,2553.1,3.91680146]
[1750422817228,10.7522,2553.7,2553.2,3.91657318]
[1750422817413,14.66817996,2553.7,2553.2,3.91657318]
[1750422817611,10.7522,2553.7,2552.8,0.7734]
[1750422817926,3.91611714,2553.6,2553.1,3.91679138]
[1750422818294,3.91621775,2553.5,2553.0,3.91688003]
[1750422818693,3.9163693,2553.4,2552.9,3.91703982]
[1750422819026,3.91643625,2553.4,2552.8,3.91717761]
[1750422819200,3.91657629,2553.3,2552.7,3.91733775]
[1750422819405,3.91657629,2553.3,2552.8,0.47371378]
[1750422819607,3.91657629,2553.3,2552.8,4.39097949]
[1750422819803,3.91641831,2553.4,2552.9,3.91704905]
[1750422820399,3.91652211,2553.3,2552.9,3.91704905]
[1750422820728,3.91643612,2553.4,2552.9,3.91704905]
[1750422821030,3.91634683,2553.4,2552.8,4.39096866]
[1750422821339,3.91664816,2553.3,2552.8,4.39096866]
[1750422822032,3.91665975,2553.2,2552.8,0.47371378]
[1750422822197,3.91665975,2553.2,2552.8,4.39097613]
[1750422822534,3.9165904,2553.3,2552.8,4.39087755]
[1750422823027,4.6878745,2553.5,2553.0,3.91695484]
[1750422823229,3.91634898,2553.4,2553.0,3.91695484]
[1750422823880,3.91634683,2553.4,2552.9,4.74784147]
[1750422824137,3.91640954,2553.4,2552.9,4.74784147]
[1750422824618,3.91640954,2553.4,2553.0,3.91695562]
[1750422824826,3.91640954,2553.4,2552.9,4.74784232]
[1750422825343,3.91640954,2553.4,2553.0,3.91694508]
[1750422825644,4.68789712,2553.5,2553.0,3.91694508]
[1750422826032,13.91610186,2553.6,2553.1,0.7908]
[1750422826235,3.91638925,2553.4,2553.0,3.91695222]
[1750422826436,3.91627805,2553.5,2553.0,3.91695222]
[1750422826634,3.91627805,2553.5,2553.1,3.91678206]
[1750422826807,3.91627805,2553.5,2553.0,3.9168814]
[1750422827207,0.36442232,2553.4,2552.8,1.22501378]
[1750422827519,0.771,2553.3,2552.8,0.7513]
[1750422827724,0.771,2553.3,2552.9,3.91709744]
[1750422827927,4.68758966,2553.3,2552.8,4.66844281]
[1750422828127,4.68758966,2553.3,2552.9,3.91711126]
[1750422828328,4.68758966,2553.3,2552.8,4.66848104]
[1750422828650,4.68758966,2553.3,2552.8,5.52706678]
[1750422828875,0.771,2553.3,2552.6,0.8092]
[1750422829149,10.53399387,2553.1,2552.6,3.91743627]
[1750422829315,3.91697801,2553.0,2552.6,3.91743627]
[1750422830221,10.0,2553.2,2552.4,0.8092]
[1750422830420,0.36430639,2553.1,2552.7,3.91734043]
[1750422831050,4.2811362,2553.1,2552.7,3.91734043]
[1750422831258,3.91682981,2553.1,2552.7,3.91734043]
[1750422832661,13.91674368,2553.2,2552.7,3.91734043]
[1750422832964,4.28118175,2553.1,2552.5,4.39038093]
[1750422833151,3.91682901,2553.1,2552.7,3.9174142]
[1750422833635,48.0,2557.5,2552.6,0.51995809]
[1750422833636,0.8316,2553.7,2552.8,4.69288103]
[1750422833836,3.91674778,2553.2,2552.8,0.7757]
[1750422834061,3.91674778,2553.2,2552.8,4.69295394]
[1750422834356,14.68937928,2553.3,2552.9,3.91710337]
[1750422834522,0.36440337,2553.2,2552.8,1.68871854]
[1750422834724,13.91611041,2553.6,2553.2,3.91659256]
[1750422834959,13.91611041,2553.6,2553.2,4.68769256]
[1750422834960,10.0,2553.6,2553.2,4.68769256]
[1750422835125,0.36442993,2553.5,2553.2,4.68769256]
[1750422835327,3.91565822,2553.9,2553.4,3.91625903]
[1750422835630,0.36446154,2553.8,2553.5,3.91616874]
[1750422835824,0.36446154,2553.7,2553.5,3.91616874]
[1750422836183,3.91535644,2554.1,2553.6,3.91601732]
[1750422836330,4.28061223,2554.0,2553.6,0.8084]
[1750422836672,4.28083549,2553.9,2553.6,0.8084]
[1750422836825,0.3651736,2553.8,2553.4,3.91626595]
[1750422837035,0.3651736,2553.8,2553.5,0.78327382]
[1750422837279,0.3651736,2553.8,2553.4,0.7675]
[1750422837280,0.3651736,2553.7,2553.4,0.7675]